bitfinex/quotes_ETHUSD_20240822
["timestamp","ask_amount","ask_price","bid_price","bid_amount"]
[1724292685176,2.37922362,2626.8,2626.6,2.344349]
[1724292685376,0.05655576,2626.7,2626.6,2.344349]
[1724292685811,0.39757489,2626.8,2626.6,2.344349]
[1724292686025,0.05655576,2626.7,2626.6,2.344349]
[1724292686426,0.39757489,2626.8,2626.6,2.344349]
[1724292686608,0.05639071,2626.7,2626.6,2.344349]
[1724292687000,0.39757489,2626.8,2626.6,2.344349]
[1724292687241,0.05640796,2626.7,2626.6,2.344349]
[1724292687395,0.05640796,2626.7,2626.6,5.3199869]
[1724292687598,0.39757489,2626.8,2626.6,5.3199869]
[1724292687599,0.39757489,2626.8,2626.7,2.429]
[1724292693275,0.39757489,2626.8,2626.7,4.68773]
[1724292693573,0.39757489,2626.8,2626.7,7.52196]
[1724292693774,0.39757489,2626.8,2626.7,8.2816309]
[1724292694382,0.39757489,2626.8,2626.7,11.2816309]
[1724292695279,0.39757489,2626.8,2626.7,13.5658609]
[1724292695572,1.98221016,2628.0,2627.5,2.28345]
[1724292695771,1.98221016,2628.0,2627.7,2.2883]
[1724292695993,0.05825625,2627.9,2627.7,2.2883]
[1724292696360,2.28307,2628.1,2627.7,2.2883]
[1724292696565,0.05825059,2627.8,2627.7,2.2883]
[1724292696797,4.26528016,2628.1,2627.7,2.2883]
[1724292696959,0.05825059,2627.8,2627.7,2.2883]
[1724292697273,2.28307,2628.1,2627.7,2.2883]
[1724292697473,0.05825059,2627.8,2627.7,2.2883]
[1724292697808,0.0581159,2627.8,2627.7,2.2883]
[1724292698100,1.98221016,2628.2,2627.7,2.2883]
[1724292698300,1.98221016,2628.2,2627.8,2.2883]
[1724292698471,0.05830827,2628.1,2627.8,2.2883]
[1724292701479,6.54796016,2628.3,2627.8,2.2883]
[1724292701678,2.34176427,2628.2,2627.8,2.2883]
[1724292703352,0.05883427,2628.2,2627.8,2.2883]
[1724292703628,2.37865219,2628.6,2628.0,2.3281]
[1724292703629,1.98221016,2628.6,2628.0,2.3281]
[1724292703838,0.05899085,2628.1,2628.0,2.3281]
[1724292703986,2.28275,2628.4,2628.0,2.3281]
[1724292704406,0.05916828,2628.3,2628.0,2.3281]
[1724292706710,0.05916828,2628.3,2628.0,4.61115]
[1724292706909,2.28264,2628.6,2628.1,2.4682]
[1724292707229,2.33922476,2628.5,2628.1,2.4682]
[1724292709305,2.28275,2628.4,2628.1,2.4682]
[1724292709635,0.05668485,2628.3,2628.1,2.4682]
[1724292710688,4.56539,2628.5,2628.1,2.4682]
[1724292710901,0.51299733,2628.4,2628.1,2.4682]
[1724292712000,0.39756714,2628.3,2628.1,2.4682]
[1724292712423,0.05624916,2628.2,2628.1,2.4682]
[1724292712830,0.39756714,2628.3,2628.1,2.4682]
[1724292713148,0.05624916,2628.2,2628.1,2.4682]
[1724292713530,0.39756714,2628.3,2628.1,2.4682]
[1724292713701,0.0565015,2628.2,2628.1,2.4682]
[1724292713899,0.39756714,2628.3,2628.1,2.4682]
[1724292714094,0.0565015,2628.2,2628.1,2.4682]
[1724292714429,0.39756714,2628.3,2628.1,2.4682]
[1724292714738,0.0565015,2628.2,2628.1,4.75121]
[1724292714947,0.39756714,2628.3,2628.1,2.28301]
[1724292715099,0.39756714,2628.3,2628.2,2.2858]
[1724292715528,0.39756714,2628.3,2628.2,5.253915]
[1724292720555,0.39756714,2628.3,2628.2,4.56873]
[1724292722701,0.39756714,2628.3,2628.2,6.85166]
[1724292723764,0.39756714,2628.3,2628.2,7.40166]
[1724292723965,0.39756714,2628.3,2628.2,16.50960608]
[1724292724169,2.28177,2629.6,2629.0,4.56047]
[1724292724414,0.05355747,2629.5,2629.0,2.2783]
[1724292724717,0.45154898,2629.5,2629.0,2.35436616]
[1724292724932,0.39799151,2629.5,2629.0,2.35436557]
[1724292725271,0.39799151,2629.5,2629.0,2.2783]
[1724292725696,0.05356937,2629.4,2629.0,2.2783]
[1724292725918,0.05356937,2629.4,2629.2,2.2783]
[1724292726720,0.05356937,2629.4,2629.3,2.2783]
[1724292726923,0.05356937,2629.4,2629.3,4.56027]
[1724292727074,0.05356937,2629.4,2629.3,2.2783]
[1724292734371,0.05356937,2629.4,2629.0,2.2834]
[1724292734688,0.05356937,2629.4,2628.6,7.49]
[1724292734689,2.28217,2629.1,2628.6,2.2834]
[1724292735132,0.05383709,2629.0,2628.6,2.2834]
[1724292735684,0.05383709,2629.0,2628.7,2.28247]
[1724292736045,2.28198,2629.3,2628.7,2.28247]
[1724292736369,0.27841871,2629.2,2628.7,5.28247]
[1724292736568,0.05385703,2629.1,2628.7,5.28247]
[1724292737122,0.05385703,2629.1,2628.7,7.56494]
[1724292737528,0.05385703,2629.1,2628.8,2.2824]
[1724292737950,2.78411709,2629.4,2628.9,2.4413]
[1724292738128,3.12333932,2629.3,2628.9,2.4413]
[1724292738344,0.05387446,2629.3,2628.9,2.4413]
[1724292738560,0.05387446,2629.3,2629.1,2.28211]
[1724292738774,0.39799151,2629.5,2629.1,2.28211]
[1724292738989,0.05394467,2629.4,2629.1,2.28211]
[1724292742098,0.05394467,2629.4,2628.9,2.4413]
[1724292742099,2.33589467,2629.4,2628.9,2.4413]
[1724292742308,2.83525329,2629.4,2628.9,2.4413]
[1724292743770,2.83525329,2629.4,2628.9,4.72359]
[1724292743973,2.33589467,2629.4,2628.9,4.72359]
[1724292745896,0.05394467,2629.4,2628.9,4.72359]
[1724292746091,2.33590467,2629.4,2628.8,2.28233]
[1724292746251,2.2707,2629.2,2628.6,2.28254]
[1724292746453,2.28237,2628.9,2628.4,2.28272]
[1724292746655,2.28257,2628.7,2627.7,7.49]
[1724292746901,2.28257,2628.7,2627.9,2.3823]
[1724292747104,0.0533108,2628.6,2627.9,2.3823]
[1724292747311,0.0533108,2628.6,2628.3,2.3823]
[1724292747469,0.0533108,2628.6,2628.3,4.66513]
[1724292747801,2.68053463,2628.8,2628.3,4.66513]
[1724292747802,0.0530921,2628.5,2628.3,4.66513]
[1724292747999,0.0530921,2628.5,2628.4,2.28275]
[1724292748205,0.39804463,2628.8,2628.5,2.28266]
[1724292748405,0.39804463,2628.8,2628.6,2.2825]
[1724292748591,0.39804463,2628.8,2628.5,2.28266]
[1724292749113,0.39804463,2628.8,2628.5,4.56532]
[1724292750107,0.39804463,2628.8,2628.4,2.28275]
[1724292754390,0.05306715,2628.7,2628.3,6.94788]
[1724292754597,2.2826,2628.6,2628.3,2.3823]
[1724292754796,2.2826,2628.6,2628.0,7.49]
[1724292754797,2.3355969,2628.6,2628.0,9.9521]
[1724292755059,4.6182469,2628.6,2628.0,12.2352]
[1724292756212,2.3355969,2628.6,2628.0,12.2352]
[1724292757300,2.3355969,2628.6,2628.1,2.28301]
[1724292757648,3.33083316,2628.6,2628.1,2.28301]
[1724292758052,2.3355969,2628.6,2628.1,2.28301]
[1724292758247,2.3355969,2628.6,2628.1,4.56602]
[1724292758464,0.0529969,2628.6,2628.2,2.28292]
[1724292759378,0.0529969,2628.6,2628.1,4.56597]
[1724292759673,0.0529969,2628.6,2628.1,5.268777]
[1724292760057,0.0529969,2628.6,2628.1,2.28296]
[1724292760257,2.3355769,2628.6,2628.1,2.28296]
[1724292760458,2.03390197,2628.6,2628.1,2.28296]
[1724292760660,0.0529969,2628.6,2628.1,4.5659]
[1724292761452,0.0529969,2628.6,2628.2,2.2829]
[1724292762362,0.39806495,2628.5,2628.2,2.985694]
[1724292762884,0.05272065,2628.4,2628.2,2.985694]
[1724292765704,0.05272065,2628.4,2628.3,7.02208]
[1724292765907,0.05272065,2628.4,2628.3,7.57208]
[1724292766260,0.39806495,2628.5,2628.4,4.5655]
[1724292766508,0.39806495,2628.5,2628.4,6.1712594]
[1724292766798,0.45087281,2628.5,2628.3,2.4564]
[1724292767001,0.45087281,2628.5,2628.2,2.28287]
[1724292767203,0.45087281,2628.5,2628.2,4.56575]
[1724292767864,0.45087281,2628.5,2628.2,4.56574]
[1724292769107,0.45087281,2628.5,2628.2,2.28287]
[1724292769469,0.45087281,2628.5,2628.2,4.56574]
[1724292769864,0.45087281,2628.5,2628.2,2.28287]
[1724292770073,0.45087281,2628.5,2628.2,4.56574]
[1724292770510,0.45087281,2628.5,2628.3,2.28284]
[1724292777423,0.45087281,2628.5,2628.2,2.28291]
[1724292780367,0.45087281,2628.5,2628.3,4.56563]
[1724292780544,0.45087281,2628.5,2628.4,2.2717]
[1724292782617,2.43517224,2628.5,2628.4,2.2717]
[1724292782833,0.45087281,2628.5,2628.4,2.2717]
[1724292783158,0.45087281,2628.5,2628.4,4.55445]
[1724292783661,2.43517224,2628.5,2628.4,4.55445]
[1724292785378,2.43571226,2628.5,2628.4,4.55445]
[1724292786490,2.43607824,2628.5,2628.4,4.55445]
[1724292787198,0.45087281,2628.5,2628.4,7.520928]
[1724292787347,0.45087281,2628.5,2628.4,8.070928]
[1724292788498,0.45087281,2628.5,2628.4,5.10445]
[1724292789092,0.45087281,2628.5,2628.4,2.2717]
[1724292789503,0.45087281,2628.5,2628.3,2.28278]
[1724292789708,0.45087281,2628.5,2628.3,5.28278]
[1724292790066,0.45087281,2628.5,2628.2,2.4]
[1724292790250,2.43607824,2628.5,2628.2,2.4]
[1724292790850,3.45020543,2628.4,2628.0,2.3433]
[1724292791097,4.35500208,2628.3,2628.0,3.0]
[1724292791309,1.98790208,2628.3,2628.0,3.0]
[1724292791612,1.51789033,2628.4,2628.0,3.0]
[1724292791613,2.04064764,2628.2,2628.0,3.0]
[1724292791749,2.43871525,2628.2,2628.0,3.0]
[1724292792109,2.43871525,2628.2,2628.0,5.28309]
[1724292793002,2.43871525,2628.2,2628.1,4.69971]
[1724292793302,2.43871525,2628.2,2628.1,2.28301]
[1724292794203,2.43871525,2628.2,2628.0,3.0]
[1724292794204,2.43871525,2628.2,2628.0,5.28309]
[1724292794910,2.43871525,2628.2,2628.1,2.28301]
[1724292795105,2.43871525,2628.2,2628.0,3.0]
[1724292795322,2.43871525,2628.2,2628.0,5.2831]
[1724292795811,0.45081317,2628.2,2628.0,5.2831]
[1724292796019,2.44014352,2628.2,2628.0,5.2831]
[1724292798617,2.44014352,2628.2,2628.0,2.2831]
[1724292798765,2.44014352,2628.2,2627.9,4.69982]
[1724292798986,1.98933035,2628.1,2627.9,6.98295]
[1724292799191,2.44014352,2628.2,2627.9,6.98295]
[1724292799393,0.05233475,2628.0,2627.9,6.98295]
[1724292799595,1.98933035,2628.1,2628.0,2.2831]
[1724292799888,1.98933035,2628.1,2627.9,9.98294]
[1724292800113,1.98933035,2628.1,2627.9,4.69982]
[1724292800704,1.98937902,2628.1,2627.9,4.69982]
[1724292801142,1.98937902,2628.1,2627.9,2.4167]
[1724292801443,1.98937902,2628.0,2627.8,3.0]
[1724292801903,1.98937902,2628.0,2627.7,4.66202]
[1724292802285,1.98937902,2627.9,2627.7,4.66202]
[1724292802488,1.465,2627.8,2627.5,3.0]
[1724292802828,1.465,2627.8,2627.3,6.946]
[1724292802829,1.98937902,2627.6,2627.3,6.946]
[1724292803026,0.05187995,2627.5,2627.3,4.66235]
[1724292803391,0.05187995,2627.5,2627.4,2.28362]
[1724292803951,1.98937902,2627.7,2627.4,2.28362]
[1724292804312,0.0516829,2627.6,2627.4,2.28362]
[1724292805330,0.0516829,2627.6,2627.5,4.66763]
[1724292805696,1.98659088,2627.7,2627.5,4.66763]
[1724292805931,0.05169563,2627.6,2627.5,4.66763]
[1724292806701,1.98659088,2627.8,2627.5,2.3841]
[1724292807023,0.44976407,2627.6,2627.5,2.3841]
[1724292807224,0.44964947,2627.6,2627.5,2.3841]
[1724292807897,0.39808691,2627.6,2627.5,2.3841]
[1724292808941,0.44964947,2627.6,2627.5,2.3841]
[1724292812910,0.44964947,2627.6,2627.2,5.66515]
[1724292813152,4.81632455,2627.6,2627.2,5.3261]
[1724292813360,7.09982455,2627.6,2627.2,5.3261]
[1724292813814,4.81632455,2627.6,2627.2,5.3261]
[1724292814515,4.19809947,2627.6,2627.2,5.3261]
[1724292817236,1.91464947,2627.6,2627.2,7.60987]
[1724292817607,1.91464947,2627.6,2627.2,5.3261]
[1724292818440,1.91464947,2627.6,2627.2,7.60988]
[1724292821139,1.91464947,2627.6,2627.2,5.28378]
[1724292823673,1.91464947,2627.6,2627.2,5.28375]
[1724292825308,1.91464947,2627.6,2627.2,7.5675]
[1724292825464,1.91464947,2627.6,2627.2,5.28375]
[1724292825757,1.91464947,2627.6,2627.2,7.56749]
[1724292825960,1.91464947,2627.6,2627.2,5.28374]
[1724292826262,1.91464947,2627.6,2627.2,7.56749]
[1724292827361,1.91464947,2627.6,2627.2,7.56748]
[1724292827964,1.91464947,2627.6,2627.2,5.28374]
[1724292828466,1.91464947,2627.6,2627.2,7.56749]
[1724292829067,1.91464947,2627.6,2627.3,2.28371]
[1724292830798,1.91464947,2627.6,2627.3,2.28223451]
[1724292830994,1.91464947,2627.6,2627.2,7.56748]
[1724292831197,1.91464947,2627.6,2627.2,5.28374]
[1724292831497,2.53255957,2627.6,2627.2,5.28374]
[1724292831697,1.465,2627.4,2627.2,5.28374]
[1724292831994,1.465,2627.4,2627.2,2.28374]
[1724292832197,0.04808059,2627.3,2627.2,2.28374]
[1724292832700,0.04808059,2627.3,2626.9,4.76225]
[1724292832852,1.465,2627.1,2626.9,4.76225]
[1724292833061,0.04784987,2627.0,2626.9,4.76225]
[1724292833308,1.86307384,2627.3,2626.9,7.0463]
[1724292833613,0.04767444,2627.0,2626.9,7.0463]
[1724292833773,1.86307384,2627.3,2626.9,7.04625]
[1724292833979,0.04767444,2627.0,2626.9,4.7622]
[1724292834307,1.86307384,2627.3,2627.0,2.28394]
[1724292835106,1.86307384,2627.3,2627.1,2.28388]
[1724292835485,1.86307384,2627.3,2627.0,2.28394]
[1724292835730,1.86307384,2627.3,2627.0,2.28392]
[1724292837323,2.47594004,2627.3,2627.0,2.28392]
[1724292840238,2.47594004,2627.3,2626.9,2.4782]
[1724292840686,1.86307384,2627.3,2626.9,2.4782]
[1724292840976,0.39807384,2627.3,2626.9,2.28401]
[1724292841186,0.39807384,2627.3,2627.0,2.3191]
[1724292841389,0.39807384,2627.3,2627.2,2.3191]
[1724292841591,0.39807384,2627.3,2627.2,4.6029]
[1724292841811,0.39807384,2627.3,2627.2,5.841586]
[1724292841989,0.39807384,2627.3,2627.2,5.91770221]
[1724292842167,0.39807384,2627.3,2627.2,8.20150221]
[1724292842370,0.39807384,2627.3,2627.2,12.590386]
[1724292842548,0.39807384,2627.3,2627.2,14.874186]
[1724292844017,0.39807384,2627.3,2627.2,12.590386]
[1724292858803,0.39807384,2627.3,2627.2,14.874186]
[1724292861272,0.39807384,2627.3,2627.2,12.590386]
[1724292861464,0.39807384,2627.3,2627.2,14.874186]
[1724292862313,0.39807384,2627.3,2627.2,12.590386]
[1724292862611,0.39807384,2627.3,2627.2,14.874186]
[1724292864176,0.39807384,2627.3,2627.2,17.157986]
[1724292864610,0.39807384,2627.3,2627.2,15.255586]
[1724292873304,0.39807384,2627.3,2627.2,11.125386]
[1724292874021,0.39807384,2627.3,2627.2,11.506786]
[1724292874627,0.39807384,2627.3,2627.2,11.125386]
[1724292875033,0.39807384,2627.3,2627.2,12.590386]
[1724292884020,0.39807384,2627.3,2627.1,2.28382]
[1724292884220,0.39807384,2627.3,2626.9,2.284]
[1724292884440,0.04766512,2627.2,2627.0,2.28396]
[1724292884742,0.39807384,2627.3,2627.0,2.28396]
[1724292884951,0.0474883,2627.1,2627.0,2.28396]
[1724292885094,0.39807384,2627.3,2627.0,2.28396]
[1724292885293,0.51877232,2627.2,2627.0,2.28396]
[1724292885567,2.327,2627.1,2626.9,2.284]
[1724292885749,2.37452522,2627.1,2626.9,2.284]
[1724292886366,3.83952522,2627.1,2626.7,2.28418]
[1724292886768,3.83952522,2627.1,2626.7,4.56836]
[1724292886968,1.465,2626.9,2626.7,2.28418]
[1724292887384,0.04618177,2626.8,2626.7,2.28418]
[1724292887561,0.04618177,2626.8,2626.7,5.28418]
[1724292888051,0.04618177,2626.8,2626.7,5.83418]
[1724292888762,0.04618177,2626.8,2626.6,7.564749]
[1724292888968,0.04618177,2626.8,2626.6,0.074749]
[1724292888969,2.2722,2626.7,2626.6,0.074749]
[1724292889167,3.7829114,2626.7,2626.6,0.074749]
[1724292895023,1.5107114,2626.7,2626.6,0.074749]
[1724292895538,0.0457114,2626.7,2626.6,0.074749]
[1724292895821,0.0457114,2626.7,2626.6,2.359069]
[1724292896022,1.465,2626.9,2626.6,4.643389]
[1724292896230,0.04553297,2626.7,2626.6,4.643389]
[1724292896688,1.465,2626.9,2626.6,4.643389]
[1724292896887,0.04560331,2626.8,2626.6,2.359069]
[1724292897114,0.04560331,2626.8,2626.7,2.28423]
[1724292897381,0.04560331,2626.8,2626.6,2.359069]
[1724292897590,0.23646599,2626.8,2626.6,2.359069]
[1724292898595,0.23646599,2626.8,2626.6,2.359019]
[1724292899225,0.23646599,2626.8,2626.6,4.643289]
[1724292899435,0.23646599,2626.8,2626.7,2.28423]
[1724292899745,0.04560331,2626.8,2626.7,4.56846]
[1724292899946,0.39802352,2627.0,2626.9,2.28406]
[1724292902251,0.39802352,2627.0,2626.7,4.56839]
[1724292902563,0.39802352,2627.0,2626.7,2.28416]
[1724292903757,0.39802352,2627.0,2626.7,4.56834]
[1724292904070,0.39802352,2627.0,2626.7,2.28416]
[1724292908028,0.04569492,2626.9,2626.7,2.28416]
[1724292911488,0.04569492,2626.9,2626.7,4.56833]
[1724292911835,0.04569492,2626.9,2626.7,2.28416]
[1724292917674,0.04569492,2626.9,2626.7,4.56834]
[1724292919303,0.04569492,2626.9,2626.7,2.28416]
[1724292920194,0.04569492,2626.9,2626.7,4.56834]
[1724292920876,0.04569492,2626.9,2626.7,2.28416]
[1724292921279,0.04569492,2626.9,2626.6,2.398949]
[1724292921280,1.70156676,2626.9,2626.6,2.398949]
[1724292921479,1.465,2626.7,2626.6,0.074749]
[1724292921788,1.51057121,2626.7,2626.6,0.074749]
[1724292922097,1.90858167,2626.7,2626.6,0.074749]
[1724292923885,0.44358167,2626.7,2626.6,7.029589]
[1724292924086,0.44358167,2626.7,2626.6,8.2825479]
[1724292924386,0.39801046,2626.7,2626.6,8.2825479]
[1724292925534,0.4417264,2626.7,2626.6,8.2825479]
[1724292926237,0.39801046,2626.7,2626.6,8.2825479]
[1724292926697,0.39801046,2626.7,2626.6,7.579589]
[1724292926839,0.4417264,2626.7,2626.6,7.579589]
[1724292929208,0.4417264,2626.7,2626.6,14.328909]
[1724292929784,0.39801046,2626.7,2626.6,14.80541022]
[1724292931482,0.39801046,2626.7,2626.6,12.52109022]
[1724292932549,0.39801046,2626.7,2626.6,12.044589]
[1724292932752,0.39801046,2626.7,2626.6,12.52107533]
[1724292933063,0.39801046,2626.7,2626.6,10.50607533]
[1724292934306,0.39801046,2626.7,2626.6,11.05607533]
[1724292936027,0.39801046,2626.7,2626.6,11.05607592]
[1724292937721,0.39801046,2626.7,2626.6,14.80539592]
[1724292937902,0.39801046,2626.7,2626.6,15.26533688]
[1724292938263,0.39801046,2626.7,2626.6,17.54965688]
[1724292938892,0.39801046,2626.7,2626.6,17.08971592]
[1724292939213,0.39801046,2626.7,2626.6,18.41341188]
[1724292939412,0.39801046,2626.7,2626.6,17.08971592]
[1724292940423,0.39801046,2626.7,2626.6,18.41342166]
[1724292940600,0.39801046,2626.7,2626.6,13.34039592]
[1724292940769,0.39801046,2626.7,2626.6,16.12910031]
[1724292940969,0.39801046,2626.7,2626.6,14.80539592]
[1724292941784,0.39801046,2626.7,2626.6,5.11987592]
[1724292941970,0.44216813,2626.7,2626.6,2.83555592]
[1724292942184,0.39801046,2626.7,2626.6,2.83555592]
[1724292942490,0.44216813,2626.7,2626.6,4.6425565]
[1724292943289,0.44216813,2626.7,2626.6,5.1925565]
[1724292943599,0.44216813,2626.7,2626.6,8.1925565]
[1724292943780,0.39801046,2626.7,2626.6,8.1925565]
[1724292943976,0.44210443,2626.7,2626.6,8.1925565]
[1724292946095,0.39801046,2626.7,2626.6,8.1925565]
[1724292946349,0.44210534,2626.7,2626.6,8.1925565]
[1724292951951,0.44210534,2626.7,2626.6,7.6425565]
[1724292953533,0.39801046,2626.7,2626.6,7.6425565]
[1724292953849,0.44193028,2626.7,2626.6,7.6425565]
[1724292954368,0.44193028,2626.7,2626.6,5.3582365]
[1724292954515,0.72137331,2626.7,2626.6,0.0739165]
[1724292957244,0.72137331,2626.7,2626.6,2.3582365]
[1724292957666,0.72137331,2626.7,2626.6,0.0739165]
[1724292961664,3.07447331,2626.7,2626.6,0.0739165]
[1724292961812,5.06319585,2626.7,2626.6,0.0739165]
[1724292963737,10.02940036,2626.7,2626.6,0.0739165]
[1724292964051,7.64293331,2626.7,2626.6,0.0739165]
[1724292964253,10.02858904,2626.7,2626.6,0.0739165]
[1724292965701,7.74435904,2626.7,2626.6,0.0739165]
[1724292965906,6.82370331,2626.7,2626.6,0.0739165]
[1724292970862,9.10793331,2626.7,2626.6,0.0739165]
[1724292971435,11.88801593,2626.7,2626.6,0.0739165]
[1724292973559,9.50426385,2626.7,2626.6,0.0739165]
[1724292981836,7.15116385,2626.7,2626.6,0.0739165]
[1724292983349,6.75483331,2626.7,2626.6,0.0739165]
[1724292983564,3.00560331,2626.7,2626.6,0.0739165]
[1724292983765,6.45420679,2626.7,2626.6,0.0739165]
[1724292984141,4.47060331,2626.7,2626.6,0.0739165]
[1724292987307,6.75483331,2626.7,2626.6,0.0739165]
[1724292987613,9.13505334,2626.7,2626.6,0.0739165]
[1724292988257,9.13656561,2626.7,2626.6,0.0739165]
[1724292990501,11.49586561,2626.7,2626.6,0.0739165]
[1724292990658,17.17707203,2626.7,2626.6,0.0739165]
[1724292991181,14.79483039,2626.7,2626.6,0.0739165]
[1724292991384,17.57351807,2626.7,2626.6,0.0739165]
[1724292992055,15.28928807,2626.7,2626.6,0.0739165]
[1724292992284,12.51060039,2626.7,2626.6,0.0739165]
[1724292992458,14.79483039,2626.7,2626.6,0.0739165]
[1724292992659,17.57351807,2626.7,2626.6,0.0739165]
[1724292992858,15.28928807,2626.7,2626.6,0.0739165]
[1724292993105,15.28955095,2626.7,2626.6,0.0739165]
[1724292993315,17.57378095,2626.7,2626.6,0.0739165]
[1724292993725,3.74993,2625.9,2625.8,2.2532]
[1724292993861,6.07737307,2625.9,2625.6,2.3384]
[1724292994061,1.465,2625.7,2625.6,2.3384]
[1724292994311,3.79242378,2625.7,2625.6,2.3384]
[1724292994473,3.79242378,2625.7,2625.0,2.28565]
[1724292994474,4.43997806,2625.7,2625.1,2.3384]
[1724292994676,1.465,2625.3,2625.1,2.3384]
[1724292994993,0.04196321,2625.2,2625.1,2.3384]
[1724292995709,1.465,2625.3,2625.1,2.3384]
[1724292996008,0.04187818,2625.2,2625.1,2.3384]
[1724292996308,1.465,2625.3,2625.1,2.3384]
[1724292996463,0.04187818,2625.2,2625.1,2.3384]
[1724292996807,1.465,2625.3,2625.1,2.3384]
[1724292996961,0.04187818,2625.2,2625.1,2.3384]
[1724292997287,1.465,2625.3,2625.1,2.3384]
[1724292997490,0.04187818,2625.2,2625.1,2.3384]
[1724292997688,1.465,2625.3,2625.1,2.3384]
[1724292997865,0.04187818,2625.2,2625.1,2.3384]
[1724292998065,1.465,2625.3,2625.1,2.3384]
[1724292998257,0.04187909,2625.2,2625.1,2.3384]
[1724292998460,3.7505,2625.3,2625.1,2.3384]
[1724292998704,2.68281694,2625.2,2624.8,1.9403]
[1724292998899,1.465,2624.9,2624.8,1.9403]
[1724292999155,1.50634614,2624.9,2624.8,1.9403]
[1724293000020,1.50634614,2624.9,2624.4,2.28617]
[1724293000219,1.465,2624.7,2624.4,2.28617]
[1724293000424,1.465,2624.7,2624.6,2.28606]
[1724293000630,1.465,2624.9,2624.6,2.28606]
[1724293001315,1.465,2624.9,2624.6,2.28601]
[1724293001818,1.465,2624.9,2624.7,2.4204]
[1724293005670,1.840063,2624.9,2624.7,2.4204]
[1724293005814,2.3605,2624.8,2623.8,1.0]
[1724293006019,1.465,2624.9,2623.8,1.0]
[1724293006020,6.03798,2624.1,2623.8,1.0]
[1724293006219,9.164318,2624.1,2623.8,1.0]
[1724293006536,4.57334,2623.9,2623.8,0.72881402]
[1724293006872,2.28667,2623.9,2623.8,0.72881402]
[1724293007081,3.32555103,2623.9,2623.8,0.72881402]
[1724293007223,1.03888103,2623.9,2623.8,0.72881402]
[1724293007426,3.75167,2623.9,2623.8,0.72881402]
[1724293007957,6.03834,2623.9,2623.8,0.72881402]
[1724293008116,6.03834,2623.9,2623.2,0.11752016]
[1724293008117,2.28719,2623.3,2623.2,0.11752016]
[1724293008320,2.28789,2622.5,2621.8,2.28848]
[1724293008563,4.054219,2623.3,2621.9,2.28834]
[1724293008564,5.28773,2622.7,2621.9,2.28834]
[1724293008872,3.535,2622.9,2622.0,2.28831]
[1724293009021,3.535,2622.9,2622.1,2.580231]
[1724293009368,2.28773,2622.7,2622.1,2.330231]
[1724293009523,5.82254,2622.9,2622.1,2.1014]
[1724293009716,2.68590829,2622.8,2622.1,2.1014]
[1724293009918,2.28781,2622.6,2622.1,2.1014]
[1724293010123,2.28771,2622.7,2622.1,2.1014]
[1724293010322,2.2879,2622.5,2622.1,2.1014]
[1724293010585,0.26859883,2622.6,2621.4,2.53881]
[1724293010586,3.535,2622.6,2621.4,2.53881]
[1724293010872,5.82284,2622.6,2621.4,0.25]
[1724293011071,2.28807,2622.3,2621.7,2.28858]
[1724293011299,2.28809,2622.3,2621.4,0.25]
[1724293011508,2.28809,2622.3,2621.4,2.53884]
[1724293011707,0.582284,2622.5,2621.9,2.28841]
[1724293011906,0.39827829,2622.8,2621.9,2.28841]
[1724293011907,2.28771,2622.7,2622.0,2.28827]
[1724293012263,0.39827829,2622.8,2622.1,2.28819]
[1724293012465,3.39827829,2622.8,2622.0,2.3374]
[1724293012760,0.39827829,2622.8,2622.0,2.3374]
[1724293012981,0.03747749,2622.7,2622.0,4.62571]
[1724293013387,0.03747749,2622.7,2622.1,2.28823]
[1724293013588,0.03747749,2622.7,2622.1,0.691402]
[1724293013821,0.03747749,2622.7,2622.6,2.2878]
[1724293014028,0.39827829,2622.8,2622.7,2.28771]
[1724293014692,0.39827829,2622.8,2622.7,4.57542]
[1724293014940,0.39827829,2622.8,2622.7,6.82842]
[1724293015092,0.39827829,2622.8,2622.7,12.66613]
[1724293015291,0.39827829,2622.8,2622.7,13.932743]
[1724293017247,0.39827829,2622.8,2622.7,11.645033]
[1724293017480,0.39827829,2622.8,2622.7,10.37842]
[1724293017590,0.39827829,2622.8,2622.7,12.66613]
[1724293020959,0.39827829,2622.8,2622.5,2.28781]
[1724293021445,0.39827829,2622.8,2622.7,2.28771]
[1724293021841,0.39827829,2622.8,2622.7,4.57542]
[1724293022057,0.39827829,2622.8,2622.7,9.88475]
[1724293022554,0.39827829,2622.8,2622.7,15.17246]
[1724293022750,0.03230698,2622.8,2622.7,15.17246]
[1724293023051,2.28633,2624.3,2623.6,2.28692]
[1724293023358,2.2865,2624.1,2623.4,6.85154]
[1724293023499,0.22865,2624.0,2623.5,2.28701]
[1724293023700,2.51524,2624.0,2623.4,2.28704]
[1724293023996,2.71855,2624.0,2623.4,2.28704]
[1724293024405,2.71855,2624.0,2623.3,2.28719]
[1724293024753,0.854005,2623.9,2623.1,2.4574]
[1724293024930,3.535,2623.8,2623.1,2.28736]
[1724293025099,3.535,2623.8,2623.3,2.28712]
[1724293025298,5.28668,2623.9,2623.3,2.28712]
[1724293025507,2.28683,2623.8,2623.1,2.28731]
[1724293025817,2.28703,2623.5,2622.7,2.28766]
[1724293026014,2.28725,2623.3,2622.7,2.28766]
[1724293027055,2.28702,2623.5,2622.5,2.28786]
[1724293027056,4.72039,2623.7,2623.0,4.57479]
[1724293027348,2.28703,2623.5,2622.8,2.28756]
[1724293027530,2.28703,2623.5,2622.6,2.28776]
[1724293027731,2.28703,2623.5,2622.8,2.28756]
[1724293027935,0.03732278,2623.4,2622.8,2.28756]
[1724293028101,0.26975806,2623.4,2622.8,2.28756]
[1724293028447,0.26975806,2623.4,2622.3,4.73433]
[1724293028448,0.26975806,2623.4,2623.0,2.2874]
[1724293028606,0.03732278,2623.4,2623.0,2.2874]
[1724293028952,4.72038,2623.7,2623.0,2.2874]
[1724293028953,4.72038,2623.7,2623.1,2.28735]
[1724293029099,0.03732624,2623.3,2623.2,4.5745]
[1724293029300,2.28694,2623.6,2623.0,2.2874]
[1724293029500,0.03728788,2623.3,2623.0,4.5748]
[1724293029702,0.228694,2623.5,2623.1,2.28736]
[1724293029945,0.03713642,2623.2,2623.1,2.28736]
[1724293030155,0.228694,2623.5,2623.1,2.28736]